fUST/lending_fUST_20250426
["ID","MTS","AMOUNT","RATE_DAILY","PERIOD"]
[359027107,1745659840948,-361.6458294,0.000168,2]
[359027109,1745659840958,-361.6458294,0.000168,2]
[359027111,1745659840968,-225.435933,0.00016829,2]
[359027112,1745659840977,-353.41893397,0.00016831,2]
[359027114,1745659840989,-1508.16933574,0.00016849,2]
[359027116,1745659840999,-361.6458294,0.000169,2]
[359027118,1745659841009,-361.6458294,0.000169,2]
[359027119,1745659841020,-2778.33553063,0.000169,2]
[359027121,1745659841030,-344.7489736,0.000169,2]
[359027123,1745659841039,-318.0053915,0.00016909,2]
[359027125,1745659841049,-633.44201964,0.00016933,2]
[359027127,1745659841061,-500.0,0.00016973,2]
[359027128,1745659841071,-500.0,0.00016973,2]
[359027130,1745659841082,-500.0,0.00016973,2]
[359027132,1745659841093,-501.0244957,0.00016973,2]
[359027134,1745659841102,-353.08283568,0.00016973,2]
[359027136,1745659841112,-500.0,0.00016973,2]
[359027137,1745659841122,-500.0,0.00016973,2]
[359027139,1745659841136,-500.0,0.00016973,2]
[359027141,1745659841146,-500.0,0.00016973,2]
[359027143,1745659841155,-500.0,0.00016973,2]
[359027145,1745659841166,-500.0,0.00016973,2]
[359027146,1745659841176,-501.00960066,0.00016973,2]
[359027148,1745659841186,-500.0,0.00016973,2]
[359027150,1745659841196,-500.0,0.00016973,2]
[359027152,1745659841206,-9.43333801,0.00016973,2]
[359027154,1745659841220,-491.88064018,0.00016973,2]
[359027156,1745659841230,-500.0,0.00016973,2]
[359027157,1745659841240,-200.50153848,0.00016973,2]
[359027167,1745659841350,-299.49846152,0.00016973,2]
[359027169,1745659841360,-500.0,0.00016973,2]
[359027171,1745659841370,-500.0,0.00016973,2]
[359027172,1745659841380,-502.88354488,0.00016973,2]
[359027188,1745659841589,-500.0,0.00016973,2]
[359027189,1745659841600,-500.0,0.00016973,2]
[359027191,1745659841610,-500.0,0.00016973,2]
[359027193,1745659841621,-500.0,0.00016973,2]
[359027195,1745659841630,-500.0,0.00016973,2]
[359027196,1745659841640,-500.0,0.00016973,2]
[359027198,1745659841650,-506.81760375,0.00016973,2]
[359027200,1745659841659,-500.0,0.00016973,2]
[359027201,1745659841669,-500.0,0.00016973,2]
[359027203,1745659841679,-500.0,0.00016973,2]
[359027205,1745659841691,-500.0,0.00016973,2]
[359027207,1745659841701,-500.0,0.00016973,2]
[359027208,1745659841711,-500.0,0.00016973,2]
[359027210,1745659841721,-500.0,0.00016973,2]
[359027212,1745659841731,-500.0,0.00016973,2]
[359027214,1745659841741,-500.0,0.00016973,2]
[359027215,1745659841751,-500.0,0.00016973,2]
[359027217,1745659841761,-500.0,0.00016973,2]
[359027219,1745659841771,-500.0,0.00016973,2]
[359027221,1745659841781,-500.0,0.00016973,2]
[359027222,1745659841791,-633.1153614,0.00016973,2]
[359027224,1745659841801,-500.0,0.00016986,2]
[359027226,1745659841811,-500.0,0.00016986,2]
[359027227,1745659841821,-500.0,0.00016986,2]
[359027229,1745659841832,-532.94958524,0.00016986,2]
[359027231,1745659841843,-500.0,0.00016986,2]
[359027232,1745659841852,-500.0,0.00016986,2]
[359027234,1745659841862,-462.11107527,0.00016986,2]
[359027236,1745659841872,-500.0,0.00016986,2]
[359027238,1745659841883,-354.9749397,0.00016986,2]
[359027239,1745659841893,-500.0,0.00016986,2]
[359027241,1745659841904,-500.0,0.00016986,2]
[359027243,1745659841914,-500.0,0.00016986,2]
[359027245,1745659841924,-500.0,0.00016986,2]
[359027246,1745659841934,-500.0,0.00016986,2]
[359027248,1745659841944,-500.0,0.00016986,2]
[359027250,1745659841954,-500.0,0.00016986,2]
[359027252,1745659841964,-500.0,0.00016986,2]
[359027253,1745659841975,-500.0,0.00016986,2]
[359027255,1745659841985,-500.0,0.00016986,2]
[359027257,1745659841995,-500.0,0.00016986,2]
[359027258,1745659842005,-287.85360596,0.00016986,2]
[359027260,1745659842018,-568.23830872,0.00016986,2]
[359027262,1745659842028,-1272.45,0.00016986,2]
[359027264,1745659842038,-538.79,0.00016986,2]
[359027266,1745659842050,-151.0,0.00016986,2]
[359027267,1745659842059,-500.0,0.00016986,2]
[359027269,1745659842070,-500.0,0.00016986,2]
[359027271,1745659842080,-500.0,0.00016986,2]
[359027273,1745659842091,-151.0,0.00016986,2]
[359027275,1745659842101,-151.0,0.00016986,2]
[359027276,1745659842112,-592.5157702,0.00016986,2]
[359027278,1745659842122,-151.0,0.00016986,2]
[359027280,1745659842132,-1115.11,0.00016986,2]
[359027282,1745659842143,-151.0,0.00016986,2]
[359027283,1745659842152,-151.0,0.00016986,2]
[359027285,1745659842163,-151.0,0.00016986,2]
[359027287,1745659842173,-500.0,0.00016986,2]
[359027289,1745659842186,-151.0,0.00016986,2]
[359027291,1745659842196,-500.0,0.00016986,2]
[359027292,1745659842206,-580.29,0.00016986,2]
[359027294,1745659842216,-500.0,0.00016986,2]
[359027296,1745659842226,-500.0,0.00016986,2]
[359027298,1745659842236,-500.0,0.00016986,2]
[359027300,1745659842246,-151.0,0.00016986,2]
[359027301,1745659842257,-551.22,0.00016986,2]
[359027303,1745659842267,-151.0,0.00016986,2]
[359027305,1745659842277,-500.0,0.00016986,2]
[359027307,1745659842287,-515.41,0.00016986,2]
[359027309,1745659842296,-841.08,0.00016986,2]
[359027311,1745659842306,-151.0,0.00016986,2]
[359027312,1745659842315,-151.0,0.00016986,2]
[359027314,1745659842325,-500.0,0.00016986,2]
[359027316,1745659842334,-568.33440638,0.00016986,2]
[359027318,1745659842344,-1711.34,0.00016986,2]
[359027319,1745659842354,-356.23862748,0.00016986,2]
[359027321,1745659842363,-500.0,0.00016986,2]
[359027323,1745659842374,-1529.21,0.00016986,2]
[359027325,1745659842384,-659.49,0.00016986,2]
[359027326,1745659842394,-3879.92,0.00016986,2]
[359027328,1745659842404,-500.0,0.00016986,2]
[359027330,1745659842414,-500.0,0.00016986,2]
[359027332,1745659842423,-500.0,0.00016986,2]
[359027333,1745659842433,-500.0,0.00016986,2]
[359027335,1745659842442,-500.0,0.00016986,2]
[359027337,1745659842452,-510.82917769,0.00016986,2]
[359027339,1745659842461,-1028.34,0.00016986,2]
[359027340,1745659842471,-151.0,0.00016986,2]
[359027342,1745659842482,-1509.95,0.00016986,2]
[359027344,1745659842492,-500.0,0.00016986,2]
[359027346,1745659842502,-4136.77,0.00016986,2]
[359027348,1745659842512,-213.23276856,0.00016986,2]
[359027349,1745659842523,-500.0,0.00016986,2]
[359027351,1745659842533,-500.0,0.00016986,2]
[359027353,1745659842543,-500.0,0.00016986,2]
[359027355,1745659842555,-500.0,0.00016986,2]
[359027357,1745659842565,-1043.88,0.00016986,2]
[359027359,1745659842575,-1026.59,0.00016986,2]
[359027360,1745659842585,-440.34024036,0.00016986,2]
[359027362,1745659842594,-580.91,0.00016986,2]
[359027364,1745659842603,-500.0,0.00016986,2]
[359027366,1745659842612,-500.0,0.00016986,2]
[359027368,1745659842622,-564.32754069,0.00016986,2]
[359027370,1745659842631,-920.08,0.00016986,2]
[359027371,1745659842641,-500.0,0.00016986,2]
[359027373,1745659842651,-500.0,0.00016986,2]
[359027375,1745659842660,-500.0,0.00016986,2]
[359027377,1745659842669,-500.0,0.00016986,2]
[359027379,1745659842678,-451.28497252,0.00016986,2]
[359027381,1745659842687,-500.0,0.00016986,2]
[359027383,1745659842695,-500.0,0.00016986,2]
[359027385,1745659842705,-506.81420696,0.00016986,2]
[359027386,1745659842713,-500.0,0.00016986,2]
[359027388,1745659842722,-644.58820008,0.00016986,2]
[359027390,1745659842731,-151.0,0.00016986,2]
[359027392,1745659842741,-151.0,0.00016986,2]
[359027394,1745659842751,-500.0,0.00016986,2]
[359027395,1745659842760,-500.0,0.00016986,2]
[359027397,1745659842769,-591.76,0.00016986,2]
[359027399,1745659842780,-151.0,0.00016986,2]
[359027401,1745659842790,-151.0,0.00016986,2]
[359027403,1745659842799,-500.0,0.00016986,2]
[359027404,1745659842808,-500.0,0.00016986,2]
[359027406,1745659842818,-2375.0,0.00016986,2]
[359027408,1745659842827,-500.0,0.00016986,2]
[359027410,1745659842837,-500.0,0.00016986,2]
[359027411,1745659842847,-151.0,0.00016986,2]
[359027413,1745659842856,-500.0,0.00016986,2]
[359027415,1745659842866,-151.0,0.00016986,2]
[359027417,1745659842875,-1286.81,0.00016986,2]
[359027419,1745659842885,-1121.83,0.00016986,2]
[359027420,1745659842895,-632.96,0.00016986,2]
[359027422,1745659842904,-500.0,0.00016986,2]
[359027424,1745659842914,-500.0,0.00016986,2]
[359027426,1745659842924,-500.0,0.00016986,2]
[359027428,1745659842934,-500.0,0.00016986,2]
[359027429,1745659842943,-500.0,0.00016986,2]
[359027431,1745659842953,-500.0,0.00016986,2]
[359027433,1745659842962,-500.0,0.00016986,2]
[359027435,1745659842971,-1442.11,0.00016986,2]
[359027437,1745659842981,-524.98816468,0.00016986,2]
[359027438,1745659842991,-500.0,0.00016986,2]
[359027439,1745659843001,-1098.08,0.00016986,2]
[359027440,1745659843018,-151.0,0.00016986,2]
[359027441,1745659843027,-1372.63,0.00016986,2]
[359027442,1745659843037,-500.0,0.00016986,2]
[359027443,1745659843047,-1324.28,0.00016986,2]
[359027444,1745659843057,-500.0,0.00016986,2]
[359027445,1745659843066,-500.0,0.00016986,2]
[359027446,1745659843076,-1577.15,0.00016986,2]
[359027447,1745659843087,-517.94206071,0.00016986,2]
[359027448,1745659843097,-500.0,0.00016986,2]
[359027449,1745659843106,-500.0,0.00016986,2]
[359027450,1745659843117,-500.0,0.00016986,2]
[359027451,1745659843128,-500.0,0.00016986,2]
[359027452,1745659843138,-622.33,0.00016986,2]
[359027453,1745659843148,-500.0,0.00016986,2]
[359027454,1745659843159,-500.0,0.00016986,2]
[359027455,1745659843170,-44101.48829725,0.0001699,2]
[359027456,1745659843186,-2331.62024805,0.0001699,2]
[359027467,1745659843626,-7801.81263371,0.00016473,2]
[359027469,1745659843636,-8891.8614547,0.0001699,2]
[359027471,1745659843646,-151.0,0.0001699,2]
[359027473,1745659843655,-151.0,0.0001699,2]
[359027475,1745659843665,-186.905647,0.0001699,2]
[359027477,1745659843675,-31554.73357878,0.00017,2]
[359027479,1745659843687,-622.8619854,0.00017,2]
[359027756,1745659846390,-1497.42,0.00016438,2]
[359027758,1745659846400,-1497.42,0.00016712,2]
[359027760,1745659846409,-565.36132389,0.00016986,2]
[359027762,1745659846421,-932.05867611,0.00016986,2]
[359027764,1745659846430,-22921.77468389,0.00017,2]
[359027785,1745659846597,-66506.90385674,0.00017,2]
[359028227,1745660654563,283.71294737,0.00023,120]
[359028228,1745660733127,-200.0,0.000153,4]
[359028229,1745660733150,-227.10135886,0.000153,4]
[359028230,1745660733173,-242.155934,0.00015374,2]
[359028231,1745660733195,-1000.0,0.00016236,2]
[359028232,1745660733216,-973.38350601,0.00016238,2]
[359028233,1745660733238,-912.86750185,0.00016333,2]
[359028234,1745660733260,-1200.0,0.00016335,2]
[359028235,1745660733281,-300.0,0.00016336,2]
[359028236,1745660733302,-300.0,0.00016336,2]
[359028237,1745660733323,-300.0,0.00016336,2]
[359028238,1745660733357,-227.38792853,0.00016337,2]
[359028239,1745660733383,-630.77167082,0.00016337,2]
[359028240,1745660733406,-232.52415517,0.00016337,2]
[359028241,1745660733435,-500.0,0.00016337,2]
[359028242,1745660733457,-250.9330257,0.00016337,2]
[359028243,1745660733479,-512.12112747,0.00016337,2]
[359028244,1745660733507,-500.0,0.00016337,2]
[359028245,1745660733528,-160.0,0.00016338,2]
[359028246,1745660733550,-169.89735728,0.00016338,2]
[359028247,1745660733571,-43941.03153155,0.00016338,2]
[359028248,1745660733593,-160.0,0.00016433,2]
[359028249,1745660733615,-421.06755229,0.00016433,2]
[359028250,1745660733638,-160.0,0.00016433,2]
[359028251,1745660733660,-500.0,0.00016438,2]
[359028252,1745660733682,-243.27754871,0.00016438,2]
[359028253,1745660733704,-500.0,0.00016438,2]
[359028254,1745660733725,-500.0,0.00016438,2]
[359028255,1745660733747,-500.0,0.00016438,2]
[359028256,1745660733769,-514.51811863,0.00016438,2]
[359028257,1745660733790,-500.0,0.00016438,2]
[359028258,1745660733812,-500.0,0.00016438,2]
[359028259,1745660733835,-500.0,0.00016438,2]
[359028260,1745660733856,-500.0,0.00016438,2]
[359028261,1745660733877,-500.0,0.00016438,2]
[359028262,1745660733899,-341.35,0.00016438,2]
[359028263,1745660733921,-500.0,0.00016438,2]
[359028264,1745660733944,-500.0,0.00016438,2]
[359028265,1745660733966,-855.93,0.00016438,2]
[359028266,1745660733987,-500.0,0.00016438,2]
[359028267,1745660734009,-281.53093066,0.00016438,2]
[359028268,1745660734032,-500.0,0.00016438,2]
[359028269,1745660734060,-508.3,0.00016438,2]
[359028270,1745660734083,-500.0,0.00016438,2]
[359028271,1745660734106,-500.0,0.00016438,2]
[359028272,1745660734128,-735.95,0.00016438,2]
[359028273,1745660734151,-500.0,0.00016438,2]
[359028274,1745660734173,-1338.06,0.00016438,2]
[359028275,1745660734195,-456.72925354,0.00016438,2]
[359028276,1745660734218,-500.0,0.00016438,2]
[359028277,1745660734241,-500.0,0.00016438,2]
[359028278,1745660734263,-500.0,0.00016438,2]
[359028279,1745660734286,-500.0,0.00016438,2]
[359028280,1745660734308,-500.0,0.00016438,2]
[359028281,1745660734330,-345.66068877,0.00016438,2]
[359028282,1745660734353,-501.77215838,0.00016438,2]
[359028283,1745660734377,-500.0,0.00016438,2]
[359028284,1745660734400,-406.48497663,0.00016438,2]
[359028285,1745660734424,-500.0,0.00016438,2]
[359028286,1745660734447,-500.0,0.00016438,2]
[359028287,1745660734469,-500.0,0.00016438,2]
[359028288,1745660734491,-548.55363414,0.00016438,2]
[359028289,1745660734516,-500.0,0.00016438,2]
[359028290,1745660734537,-500.0,0.00016438,2]
[359028291,1745660734558,-500.0,0.00016438,2]
[359028292,1745660734580,-517.79,0.00016438,2]
[359028293,1745660734602,-1261.85,0.00016438,2]
[359028294,1745660734623,-553.84,0.00016438,2]
[359028295,1745660734645,-500.0,0.00016438,2]
[359028296,1745660734667,-500.0,0.00016438,2]
[359028297,1745660734689,-544.27090419,0.00016438,2]
[359028298,1745660734975,-2078.13,0.00016438,2]
[359028299,1745660734999,-500.0,0.00016438,2]
[359028300,1745660735023,-500.0,0.00016438,2]
[359028301,1745660735044,-527.75990194,0.00016438,2]
[359028302,1745660735068,-1201.05,0.00016438,2]
[359028303,1745660735089,-641.78496766,0.00016438,2]
[359028304,1745660735111,-1158.74,0.00016438,2]
[359028305,1745660735132,-500.0,0.00016438,2]
[359028306,1745660735154,-960.82,0.00016438,2]
[359028307,1745660735175,-500.0,0.00016438,2]
[359028308,1745660735195,-500.0,0.00016438,2]
[359028309,1745660735218,-500.0,0.00016438,2]
[359028310,1745660735240,-500.0,0.00016438,2]
[359028311,1745660735260,-500.0,0.00016438,2]
[359028312,1745660735284,-1380.0,0.00016438,2]
[359028313,1745660735307,-1310.24,0.00016438,2]
[359028314,1745660735331,-500.0,0.00016438,2]
[359028315,1745660735352,-557.49,0.00016438,2]
[359028316,1745660735373,-1113.39,0.00016438,2]
[359028317,1745660735395,-559.25,0.00016438,2]
[359028318,1745660735417,-500.0,0.00016438,2]
[359028319,1745660735440,-525.18,0.00016438,2]
[359028320,1745660735461,-577.06,0.00016438,2]
[359028321,1745660735482,-500.0,0.00016438,2]
[359028322,1745660735505,-500.0,0.00016438,2]
[359028323,1745660735528,-3394.93,0.00016438,2]
[359028324,1745660735551,-1321.21,0.00016438,2]
[359028325,1745660735573,-198.84198326,0.00016438,2]
[359028326,1745660754086,-3420.82801674,0.00016438,2]
[359028327,1745660754109,-500.0,0.00016438,2]
[359028328,1745660754131,-1136.18,0.00016438,2]
[359028329,1745660754154,-500.0,0.00016438,2]
[359028330,1745660754176,-500.0,0.00016438,2]
[359028331,1745660754198,-500.0,0.00016438,2]
[359028332,1745660754221,-500.0,0.00016438,2]
[359028333,1745660754244,-500.0,0.00016438,2]
[359028334,1745660754266,-500.0,0.00016438,2]
[359028335,1745660754289,-967.62,0.00016438,2]
[359028336,1745660754310,-857.25,0.00016438,2]
[359028337,1745660754332,-500.0,0.00016438,2]
[359028338,1745660754353,-500.0,0.00016438,2]
[359028339,1745660754375,-500.0,0.00016438,2]
[359028340,1745660754397,-913.4,0.00016438,2]
[359028341,1745660754418,-500.0,0.00016438,2]
[359028342,1745660754444,-500.0,0.00016438,2]
[359028343,1745660754464,-608.32,0.00016438,2]
[359028344,1745660754486,-500.0,0.00016438,2]
[359028345,1745660754508,-500.0,0.00016438,2]
[359028346,1745660754530,-500.0,0.00016438,2]
[359028347,1745660754551,-500.0,0.00016438,2]
[359028348,1745660754573,-981.6,0.00016438,2]
[359028349,1745660754594,-1079.81,0.00016438,2]
[359028350,1745660754616,-500.0,0.00016438,2]
[359028351,1745660754636,-500.0,0.00016438,2]
[359028352,1745660754657,-500.0,0.00016438,2]
[359028353,1745660754677,-500.0,0.00016438,2]
[359028354,1745660754698,-1125.96,0.00016438,2]
[359028355,1745660754719,-500.0,0.00016438,2]
[359028356,1745660754740,-500.0,0.00016438,2]
[359028357,1745660754760,-500.0,0.00016438,2]
[359028358,1745660754782,-500.0,0.00016438,2]
[359028359,1745660754802,-500.0,0.00016438,2]
[359028360,1745660754823,-500.0,0.00016438,2]
[359028361,1745660754844,-500.0,0.00016438,2]
[359028362,1745660754865,-500.0,0.00016438,2]
[359028363,1745660754886,-500.0,0.00016438,2]
[359028364,1745660754906,-500.0,0.00016438,2]
[359028365,1745660754928,-500.0,0.00016438,2]
[359028366,1745660754949,-500.0,0.00016438,2]
[359028367,1745660754970,-500.0,0.00016438,2]
[359028368,1745660754991,-500.0,0.00016438,2]
[359028369,1745660755012,-313.91442937,0.00016438,2]
[359028370,1745660755034,-500.0,0.00016438,2]
[359028371,1745660755055,-500.0,0.00016438,2]
[359028372,1745660755077,-1991.54,0.00016438,2]
[359028373,1745660755099,-500.0,0.00016438,2]
[359028374,1745660755315,-500.0,0.00016438,2]
[359028375,1745660755337,-864.52,0.00016438,2]
[359028376,1745660755359,-1322.5,0.00016438,2]
[359028377,1745660755379,-500.0,0.00016438,2]
[359028378,1745660755401,-500.0,0.00016438,2]
[359028379,1745660755424,-500.0,0.00016438,2]
[359028380,1745660755446,-500.0,0.00016438,2]
[359028381,1745660755466,-386.604316,0.00016438,2]
[359028382,1745660755486,-527.001,0.00016503,2]
[359028383,1745660755506,-403.0,0.00016503,2]
[359028384,1745660755526,-2200.0,0.00016673,2]
[359028385,1745660755547,-500.0,0.00016712,2]
[359028386,1745660755568,-500.0,0.00016712,2]
[359028387,1745660755588,-500.0,0.00016712,2]
[359028388,1745660755609,-648.5612619,0.00016712,2]
[359028389,1745660755630,-500.0,0.00016712,2]
[359028390,1745660755649,-511.43393584,0.00016712,2]
[359028391,1745660755669,-500.0,0.00016712,2]
[359028392,1745660755689,-500.0,0.00016712,2]
[359028393,1745660755708,-500.0,0.00016712,2]
[359028394,1745660755729,-500.0,0.00016712,2]
[359028395,1745660755750,-500.0,0.00016712,2]
[359028396,1745660755770,-467.59209837,0.00016712,2]
[359028397,1745660755791,-508.3,0.00016712,2]
[359028398,1745660755812,-500.0,0.00016712,2]
[359028399,1745660755832,-500.0,0.00016712,2]
[359028400,1745660755852,-735.95,0.00016712,2]
[359028401,1745660755873,-1338.06,0.00016712,2]
[359028402,1745660755894,-500.0,0.00016712,2]
[359028403,1745660755914,-500.0,0.00016712,2]
[359028404,1745660755934,-312.32942294,0.00016712,2]
[359028405,1745660755955,-500.0,0.00016712,2]
[359028406,1745660755976,-500.0,0.00016712,2]
[359028407,1745660755996,-500.0,0.00016712,2]
[359028408,1745660756017,-500.0,0.00016712,2]
[359028409,1745660756038,-500.0,0.00016712,2]
[359028410,1745660756059,-500.0,0.00016712,2]
[359028411,1745660756080,-500.0,0.00016712,2]
[359028412,1745660756101,-500.0,0.00016712,2]
[359028413,1745660756123,-500.0,0.00016712,2]
[359028414,1745660756144,-517.79,0.00016712,2]
[359028415,1745660756165,-1261.85,0.00016712,2]
[359028416,1745660756186,-553.84,0.00016712,2]
[359028417,1745660756208,-500.0,0.00016712,2]
[359028418,1745660756229,-500.0,0.00016712,2]
[359028419,1745660756251,-500.0,0.00016712,2]
[359028420,1745660756272,-500.0,0.00016712,2]
[359028421,1745660756293,-960.82,0.00016712,2]
[359028422,1745660756314,-355.43,0.00016712,2]
[359028423,1745660756335,-500.0,0.00016712,2]
[359028424,1745660756359,-1310.24,0.00016712,2]
[359028425,1745660756381,-1113.39,0.00016712,2]
[359028426,1745660756402,-559.25,0.00016712,2]
[359028427,1745660756425,-500.0,0.00016712,2]
[359028428,1745660756446,-525.18,0.00016712,2]
[359028429,1745660756468,-577.06,0.00016712,2]
[359028430,1745660756491,-500.0,0.00016712,2]
[359028431,1745660756516,-500.0,0.00016712,2]
[359028432,1745660756538,-3394.93,0.00016712,2]
[359028433,1745660756562,-1321.21,0.00016712,2]
[359028434,1745660756583,-3619.67,0.00016712,2]
[359028435,1745660756604,-500.0,0.00016712,2]
[359028436,1745660756626,-1136.18,0.00016712,2]
[359028437,1745660756648,-500.0,0.00016712,2]
[359028438,1745660756669,-500.0,0.00016712,2]
[359028439,1745660756691,-500.0,0.00016712,2]
[359028440,1745660756711,-500.0,0.00016712,2]
[359028441,1745660756732,-500.0,0.00016712,2]
[359028442,1745660756753,-500.0,0.00016712,2]
[359028443,1745660756775,-967.62,0.00016712,2]
[359028444,1745660756795,-857.25,0.00016712,2]
[359028445,1745660756816,-500.0,0.00016712,2]
[359028446,1745660756836,-500.0,0.00016712,2]
[359028447,1745660756857,-500.0,0.00016712,2]
[359028448,1745660756878,-913.4,0.00016712,2]
[359028449,1745660756898,-500.0,0.00016712,2]
[359028450,1745660756919,-981.6,0.00016712,2]
[359028451,1745660756939,-1079.81,0.00016712,2]
[359028452,1745660756960,-500.0,0.00016712,2]
[359028453,1745660756980,-500.0,0.00016712,2]
[359028454,1745660757002,-500.0,0.00016712,2]
[359028455,1745660757023,-1125.96,0.00016712,2]
[359028456,1745660757044,-500.0,0.00016712,2]
[359028457,1745660757065,-500.0,0.00016712,2]
[359028458,1745660757087,-500.0,0.00016712,2]
[359028459,1745660757108,-500.0,0.00016712,2]
[359028460,1745660757128,-500.0,0.00016712,2]
[359028461,1745660757149,-500.0,0.00016712,2]
[359028462,1745660757170,-500.0,0.00016712,2]
[359028463,1745660757191,-500.0,0.00016712,2]
[359028464,1745660757212,-500.0,0.00016712,2]
[359028465,1745660757233,-500.0,0.00016712,2]
[359028466,1745660757254,-500.0,0.00016712,2]
[359028467,1745660757274,-500.0,0.00016712,2]
[359028468,1745660757295,-1991.54,0.00016712,2]
[359028469,1745660757316,-612.0007641,0.00016712,2]
[359028470,1745660757337,-500.0,0.00016712,2]
[359028471,1745660757565,-864.52,0.00016712,2]
[359028472,1745660757588,-1322.5,0.00016712,2]
[359028473,1745660757609,-500.0,0.00016712,2]
[359028474,1745660757631,-500.0,0.00016712,2]
[359028475,1745660757652,-500.0,0.00016712,2]
[359028476,1745660757673,-202.8923397,0.00016829,2]
[359028477,1745660757694,-20663.92884962,0.0001683,2]
[359028478,1745660757715,-318.0053915,0.00016838,2]
[359028479,1745660757736,-169.89735728,0.000169,2]
[359028480,1745660757758,-2685.72434644,0.000169,2]
[359028481,1745660757779,-500.0,0.00016973,2]
[359028482,1745660757801,-500.0,0.00016973,2]
[359028483,1745660757822,-500.0,0.00016973,2]
[359028484,1745660757842,-500.0,0.00016973,2]
[359028485,1745660757863,-211.04845706,0.00016973,2]
[359028486,1745660757883,-502.66048724,0.00016973,2]
[359028487,1745660757904,-380.21646076,0.00016973,2]
[359028488,1745660757925,-500.0,0.00016973,2]
[359028489,1745660757949,-500.0,0.00016973,2]
[359028490,1745660757970,-500.0,0.00016973,2]
[359028491,1745660757991,-500.0,0.00016973,2]
[359028492,1745660758012,-500.0,0.00016973,2]
[359028493,1745660758033,-500.0,0.00016973,2]
[359028494,1745660758056,-500.0,0.00016973,2]
[359028495,1745660758077,-500.0,0.00016973,2]
[359028496,1745660758100,-500.0,0.00016973,2]
[359028497,1745660758121,-500.0,0.00016973,2]
[359028498,1745660758143,-500.0,0.00016973,2]
[359028499,1745660758163,-500.0,0.00016973,2]
[359028500,1745660758184,-500.0,0.00016973,2]
[359028501,1745660758205,-500.0,0.00016973,2]
[359028502,1745660758226,-500.0,0.00016973,2]
[359028503,1745660758246,-500.0,0.00016973,2]
[359028504,1745660758266,-151.0,0.00016986,2]
[359028505,1745660758286,-500.0,0.00016986,2]
[359028506,1745660758306,-500.0,0.00016986,2]
[359028507,1745660758328,-500.0,0.00016986,2]
[359028508,1745660758350,-510.75304839,0.00016986,2]
[359028509,1745660758372,-500.0,0.00016986,2]
[359028510,1745660758393,-500.0,0.00016986,2]
[359028511,1745660758415,-222.61883175,0.00016986,2]
[359028516,1745660808097,-250.0,0.000152,2]
[359028517,1745660808121,-153.90919318,0.00016338,2]
[359028518,1745660808143,-500.0,0.00016438,2]
[359028519,1745660808165,-500.0,0.00016438,2]
[359028520,1745660808187,-500.0,0.00016438,2]
[359028521,1745660808209,-738.31,0.00016438,2]
[359028522,1745660808231,-512.65,0.00016438,2]
[359028523,1745660808254,-567.16,0.00016438,2]
[359028524,1745660808276,-500.0,0.00016438,2]